[Event "Titled Tuesday Blitz May 16 Late 2023"]
[White "Magallanes, Rey Jomar"]
[Black "Petrovic, Aleksa"]
[WhiteFideId "5205948"]
[BlackFideId "967629"]
[WhiteElo "2262"]
[BlackElo "2309"]
[Result "0-1"]
[Round "05"]
[TimeControl "180+2"]
[Date "2023.05.16"]
[WhiteClock "0:00:25"]
[BlackClock "0:00:08"]

1. e4 {[%clk 0:03:00]}  d5 {[%clk 0:02:56]} 2. exd5 {[%clk 0:03:00]}  Qxd5 {[%clk 0:02:57]} 3. Nf3 {[%clk 0:02:59]}  Nf6 {[%clk 0:02:55]} 4. d4 {[%clk 0:02:58]}  g6 {[%clk 0:02:54]} 5. c4 {[%clk 0:02:58]}  Qd8 {[%clk 0:02:51]} 6. Nc3 {[%clk 0:02:56]}  Bg7 {[%clk 0:02:52]} 7. Be2 {[%clk 0:02:55]}  O-O {[%clk 0:02:52]} 8. O-O {[%clk 0:02:55]}  b6 {[%clk 0:02:53]} 9. Bf4 {[%clk 0:02:55]}  Bb7 {[%clk 0:02:53]} 10. h3 {[%clk 0:02:54]}  Na6 {[%clk 0:02:52]} 11. a3 {[%clk 0:02:53]}  c5 {[%clk 0:02:51]} 12. d5 {[%clk 0:02:52]}  Nc7 {[%clk 0:02:41]} 13. d6 {[%clk 0:02:45]}  exd6 {[%clk 0:02:30]} 14. Bxd6 {[%clk 0:02:45]}  Re8 {[%clk 0:02:24]} 15. Nh2 {[%clk 0:02:36]}  Nfd5 {[%clk 0:02:07]} 16. cxd5 {[%clk 0:02:06]}  Qxd6 {[%clk 0:02:06]} 17. Bf3 {[%clk 0:02:04]}  Bxc3 {[%clk 0:02:04]} 18. bxc3 {[%clk 0:02:04]}  Ba6 {[%clk 0:01:55]} 19. Re1 {[%clk 0:02:02]}  Rxe1+ {[%clk 0:01:50]} 20. Qxe1 {[%clk 0:02:02]}  Re8 {[%clk 0:01:50]} 21. Qd2 {[%clk 0:02:00]}  Bc4 {[%clk 0:01:46]} 22. Rd1 {[%clk 0:01:59]}  Bb3 {[%clk 0:01:39]} 23. Rc1 {[%clk 0:01:54]}  Bc4 {[%clk 0:01:27]} 24. Rd1 {[%clk 0:01:54]}  h5 {[%clk 0:01:16]} 25. Nf1 {[%clk 0:01:52]}  Bxf1 {[%clk 0:01:14]} 26. Kxf1 {[%clk 0:01:51]}  Qh2 {[%clk 0:01:02]} 27. g3 {[%clk 0:01:46]}  Qxh3+ {[%clk 0:01:01]} 28. Bg2 {[%clk 0:01:46]}  Qd7 {[%clk 0:00:57]} 29. d6 {[%clk 0:01:45]}  Ne6 {[%clk 0:00:51]} 30. Qd5 {[%clk 0:01:45]}  Rd8 {[%clk 0:00:47]} 31. Bh3 {[%clk 0:01:40]}  Re8 {[%clk 0:00:33]} 32. Re1 {[%clk 0:01:33]}  Kg7 {[%clk 0:00:29]} 33. Bg2 {[%clk 0:01:30]}  Rd8 {[%clk 0:00:26]} 34. Qe5+ {[%clk 0:01:30]}  Kg8 {[%clk 0:00:26]} 35. Rd1 {[%clk 0:01:29]}  Ng7 {[%clk 0:00:20]} 36. c4 {[%clk 0:01:23]}  Ne8 {[%clk 0:00:18]} 37. Kg1 {[%clk 0:00:59]}  Nxd6 {[%clk 0:00:16]} 38. Bh3 {[%clk 0:00:59]}  Qxh3 {[%clk 0:00:15]} 39. Rxd6 {[%clk 0:01:00]}  Rxd6 {[%clk 0:00:15]} 40. Qxd6 {[%clk 0:01:00]}  Qe6 {[%clk 0:00:15]} 41. Qd8+ {[%clk 0:00:57]}  Kg7 {[%clk 0:00:15]} 42. Qh4 {[%clk 0:00:57]}  Qe1+ {[%clk 0:00:13]} 43. Kg2 {[%clk 0:00:56]}  Qc3 {[%clk 0:00:14]} 44. Qe4 {[%clk 0:00:53]}  Qd4 {[%clk 0:00:12]} 45. Qe2 {[%clk 0:00:53]}  Kf6 {[%clk 0:00:11]} 46. Qf3+ {[%clk 0:00:52]}  Ke7 {[%clk 0:00:11]} 47. Qb7+ {[%clk 0:00:52]}  Qd7 {[%clk 0:00:11]} 48. Qe4+ {[%clk 0:00:50]}  Kd6 {[%clk 0:00:11]} 49. Qd5+ {[%clk 0:00:50]}  Kc7 {[%clk 0:00:11]} 50. Qe5+ {[%clk 0:00:50]}  Qd6 {[%clk 0:00:11]} 51. Qg7 {[%clk 0:00:47]}  Qc6+ {[%clk 0:00:09]} 52. Kg1 {[%clk 0:00:47]}  Qe6 {[%clk 0:00:10]} 53. Qc3 {[%clk 0:00:41]}  f6 {[%clk 0:00:10]} 54. a4 {[%clk 0:00:40]}  Qe5 {[%clk 0:00:10]} 55. Qd3 {[%clk 0:00:38]}  f5 {[%clk 0:00:10]} 56. Qd2 {[%clk 0:00:28]}  Qd4 {[%clk 0:00:08]} 57. Qg5 {[%clk 0:00:26]}  Qd1+ {[%clk 0:00:07]} 58. Kg2 {[%clk 0:00:26]}  Qd6 {[%clk 0:00:08]} 59. Qh6 {[%clk 0:00:21]}  Kb7 {[%clk 0:00:08]} 60. Qg7+ {[%clk 0:00:21]}  Ka6 {[%clk 0:00:07]} 61. Qc3 {[%clk 0:00:19]}  Qd4 {[%clk 0:00:06]} 62. Qb3 {[%clk 0:00:19]}  Qd7 {[%clk 0:00:05]} 63. Qc3 {[%clk 0:00:19]}  Qxa4 {[%clk 0:00:05]} 64. f3 {[%clk 0:00:17]}  Qc6 {[%clk 0:00:04]} 65. Kh3 {[%clk 0:00:16]}  Kb7 {[%clk 0:00:04]} 66. g4 {[%clk 0:00:16]}  fxg4+ {[%clk 0:00:04]} 67. fxg4 {[%clk 0:00:17]}  Qh1+ {[%clk 0:00:04]} 68. Kg3 {[%clk 0:00:17]}  Qg1+ {[%clk 0:00:04]} 69. Kf4 {[%clk 0:00:17]}  Qxg4+ {[%clk 0:00:05]} 70. Ke5 {[%clk 0:00:18]}  Qf5+ {[%clk 0:00:05]} 71. Kd6 {[%clk 0:00:17]}  Qf8+ {[%clk 0:00:05]} 72. Ke5 {[%clk 0:00:17]}  Qg7+ {[%clk 0:00:05]} 73. Kd6 {[%clk 0:00:18]}  Qxc3 {[%clk 0:00:06]} 74. Ke7 {[%clk 0:00:19]}  Qxc4 {[%clk 0:00:06]} 75. Kf8 {[%clk 0:00:19]}  a5 {[%clk 0:00:06]} 76. Kg7 {[%clk 0:00:20]}  a4 {[%clk 0:00:07]} 77. Kh8 {[%clk 0:00:21]}  a3 {[%clk 0:00:08]} 78. Kh7 {[%clk 0:00:22]}  a2 {[%clk 0:00:09]} 79. Kh8 {[%clk 0:00:23]}  a1=B+ {[%clk 0:00:08]} 80. Kh7 {[%clk 0:00:24]}  Qf7+ {[%clk 0:00:07]} 81. Kh6 {[%clk 0:00:24]}  Bg7+ {[%clk 0:00:07]} 82. Kg5 {[%clk 0:00:25]}  Qf6# {[%clk 0:00:08]} 0-1


[Site "https://www.chess.com"]

[Event "Titled Tuesday Blitz May 16 Late 2023"]
[White "Rodriguez Polo, Mateo"]
[Black "KorolDimitriy75"]
[WhiteFideId "24509396"]
[WhiteElo "2117"]
[BlackElo "2462"]
[Result "1-0"]
[Round "05"]
[TimeControl "180+2"]
[Date "2023.05.16"]
[WhiteClock "0:00:08"]
[BlackClock "0:00:00"]

1. Nf3 {[%clk 0:02:57]}  c5 {[%clk 0:02:59]} 2. c4 {[%clk 0:02:58]}  g6 {[%clk 0:03:00]} 3. e4 {[%clk 0:02:57]}  Bg7 {[%clk 0:02:57]} 4. d4 {[%clk 0:02:58]}  cxd4 {[%clk 0:02:58]} 5. Nxd4 {[%clk 0:02:58]}  Nc6 {[%clk 0:02:58]} 6. Be3 {[%clk 0:02:58]}  Nf6 {[%clk 0:02:57]} 7. Nc3 {[%clk 0:02:58]}  O-O {[%clk 0:02:57]} 8. Be2 {[%clk 0:02:58]}  d6 {[%clk 0:02:57]} 9. O-O {[%clk 0:02:58]}  Bd7 {[%clk 0:02:56]} 10. Qd2 {[%clk 0:02:58]}  Nxd4 {[%clk 0:02:57]} 11. Bxd4 {[%clk 0:02:59]}  Bc6 {[%clk 0:02:57]} 12. f3 {[%clk 0:03:00]}  a5 {[%clk 0:02:57]} 13. b3 {[%clk 0:03:00]}  Nd7 {[%clk 0:02:57]} 14. Be3 {[%clk 0:03:01]}  Nc5 {[%clk 0:02:57]} 15. Rab1 {[%clk 0:03:01]}  Qb6 {[%clk 0:02:57]} 16. Rfc1 {[%clk 0:03:01]}  Rfc8 {[%clk 0:02:56]} 17. Bf1 {[%clk 0:02:32]}  Qb4 {[%clk 0:02:55]} 18. Rc2 {[%clk 0:02:31]}  a4 {[%clk 0:02:42]} 19. a3 {[%clk 0:02:17]}  Qxa3 {[%clk 0:02:14]} 20. b4 {[%clk 0:02:18]}  Nb3 {[%clk 0:02:10]} 21. Qe1 {[%clk 0:01:59]}  Qxb4 {[%clk 0:02:09]} 22. Kh1 {[%clk 0:00:45]}  Qa5 {[%clk 0:02:00]} 23. Bd3 {[%clk 0:00:39]}  Nc5 {[%clk 0:01:23]} 24. Be2 {[%clk 0:00:34]}  Nb3 {[%clk 0:01:11]} 25. Bd3 {[%clk 0:00:30]}  Bf6 {[%clk 0:00:58]} 26. g3 {[%clk 0:00:23]}  h5 {[%clk 0:00:55]} 27. Kg2 {[%clk 0:00:20]}  Kg7 {[%clk 0:00:53]} 28. Nd5 {[%clk 0:00:18]}  Qxe1 {[%clk 0:00:47]} 29. Rxe1 {[%clk 0:00:19]}  Bxd5 {[%clk 0:00:46]} 30. exd5 {[%clk 0:00:15]}  a3 {[%clk 0:00:37]} 31. Ra2 {[%clk 0:00:15]}  Bb2 {[%clk 0:00:19]} 32. Re2 {[%clk 0:00:15]}  f6 {[%clk 0:00:15]} 33. h4 {[%clk 0:00:12]}  Kf7 {[%clk 0:00:14]} 34. Kh3 {[%clk 0:00:10]}  Na5 {[%clk 0:00:12]} 35. Rc2 {[%clk 0:00:08]}  Nb3 {[%clk 0:00:12]} 36. g4 {[%clk 0:00:06]}  hxg4+ {[%clk 0:00:11]} 37. fxg4 {[%clk 0:00:07]}  Nc5 {[%clk 0:00:11]} 38. Be2 {[%clk 0:00:06]}  Rh8 {[%clk 0:00:10]} 39. Kg3 {[%clk 0:00:04]}  Nd7 {[%clk 0:00:10]} 40. Bd3 {[%clk 0:00:04]}  Ne5 {[%clk 0:00:10]} 41. Be2 {[%clk 0:00:03]}  Rhc8 {[%clk 0:00:10]} 42. Bf4 {[%clk 0:00:03]}  Rh8 {[%clk 0:00:07]} 43. h5 {[%clk 0:00:03]}  gxh5 {[%clk 0:00:06]} 44. gxh5 {[%clk 0:00:04]}  Rag8+ {[%clk 0:00:06]} 45. Kf2 {[%clk 0:00:04]}  Ng4+ {[%clk 0:00:05]} 46. Bxg4 {[%clk 0:00:02]}  Rxg4 {[%clk 0:00:06]} 47. Kf3 {[%clk 0:00:03]}  Rh4 {[%clk 0:00:06]} 48. h6 {[%clk 0:00:02]}  Rh3+ {[%clk 0:00:05]} 49. Kg4 {[%clk 0:00:02]}  Rb3 {[%clk 0:00:05]} 50. Rg2 {[%clk 0:00:01]}  Rb4 {[%clk 0:00:04]} 51. Kf5 {[%clk 0:00:01]}  Rh7 {[%clk 0:00:04]} 52. Rg7+ {[%clk 0:00:02]}  Rxg7 {[%clk 0:00:04]} 53. hxg7 {[%clk 0:00:03]}  Kxg7 {[%clk 0:00:05]} 54. c5 {[%clk 0:00:02]}  dxc5 {[%clk 0:00:04]} 55. d6 {[%clk 0:00:03]}  exd6 {[%clk 0:00:03]} 56. Bxd6 {[%clk 0:00:03]}  Rc4 {[%clk 0:00:03]} 57. Ke6 {[%clk 0:00:04]}  Kg6 {[%clk 0:00:03]} 58. Kd5 {[%clk 0:00:05]}  Rc1 {[%clk 0:00:03]} 59. Bxc5 {[%clk 0:00:06]}  f5 {[%clk 0:00:03]} 60. Bb4 {[%clk 0:00:06]}  Rd1+ {[%clk 0:00:02]} 61. Kc4 {[%clk 0:00:06]}  Rf1 {[%clk 0:00:01]} 62. Bxa3 {[%clk 0:00:06]}  Bxa3 {[%clk 0:00:01]} 63. Rxa3 {[%clk 0:00:07]}  Kg5 {[%clk 0:00:00]} 64. Rb3 {[%clk 0:00:08]} 1-0


[Site "https://www.chess.com"]

[Event "Titled Tuesday Blitz May 16 Late 2023"]
[White "Curtis, John"]
[Black "Papayan, Oleg"]
[WhiteFideId "3200256"]
[BlackFideId "4193911"]
[WhiteElo "2203"]
[BlackElo "2171"]
[Result "0-1"]
[Round "05"]
[TimeControl "180+2"]
[Date "2023.05.16"]
[WhiteClock "0:00:00"]
[BlackClock "0:00:20"]

1. e4 {[%clk 0:03:00]}  e5 {[%clk 0:02:59]} 2. Nf3 {[%clk 0:02:58]}  Nc6 {[%clk 0:02:59]} 3. Bb5 {[%clk 0:02:57]}  Nf6 {[%clk 0:02:59]} 4. d3 {[%clk 0:02:56]}  Bc5 {[%clk 0:02:58]} 5. c3 {[%clk 0:02:53]}  O-O {[%clk 0:02:53]} 6. O-O {[%clk 0:02:50]}  d6 {[%clk 0:02:46]} 7. a4 {[%clk 0:02:41]}  a5 {[%clk 0:02:42]} 8. Bg5 {[%clk 0:02:35]}  Bg4 {[%clk 0:02:22]} 9. Nbd2 {[%clk 0:02:33]}  Ne7 {[%clk 0:02:11]} 10. Bxf6 {[%clk 0:02:30]}  gxf6 {[%clk 0:02:12]} 11. h3 {[%clk 0:02:08]}  Be6 {[%clk 0:02:11]} 12. d4 {[%clk 0:02:07]}  Ba7 {[%clk 0:02:00]} 13. Bc4 {[%clk 0:02:01]}  Ng6 {[%clk 0:01:43]} 14. Qb3 {[%clk 0:01:29]}  Qc8 {[%clk 0:01:39]} 15. Bxe6 {[%clk 0:01:28]}  fxe6 {[%clk 0:01:38]} 16. Nc4 {[%clk 0:01:20]}  Nf4 {[%clk 0:01:06]} 17. Rad1 {[%clk 0:01:05]}  Kh8 {[%clk 0:00:56]} 18. Kh2 {[%clk 0:00:54]}  Rg8 {[%clk 0:00:53]} 19. g3 {[%clk 0:00:47]}  Ng6 {[%clk 0:00:34]} 20. dxe5 {[%clk 0:00:43]}  fxe5 {[%clk 0:00:32]} 21. Nxa5 {[%clk 0:00:41]}  Rf8 {[%clk 0:00:21]} 22. Ng5 {[%clk 0:00:00]}  Bxf2 {[%clk 0:00:20]} 0-1


[Site "https://www.chess.com"]

[Event "Titled Tuesday Blitz May 16 Late 2023"]
[White "Tristan, Leonardo"]
[Black "Skaric, Djuro"]
[WhiteFideId "113816"]
[BlackFideId "934569"]
[WhiteElo "2461"]
[BlackElo "2282"]
[Result "1-0"]
[Round "05"]
[TimeControl "180+2"]
[Date "2023.05.16"]
[WhiteClock "0:00:14"]
[BlackClock "0:00:06"]

1. d4 {[%clk 0:03:00]}  d6 {[%clk 0:02:57]} 2. e4 {[%clk 0:02:55]}  Nf6 {[%clk 0:02:57]} 3. Nc3 {[%clk 0:02:55]}  g6 {[%clk 0:02:56]} 4. Nf3 {[%clk 0:02:53]}  Bg7 {[%clk 0:02:56]} 5. Be2 {[%clk 0:02:54]}  O-O {[%clk 0:02:56]} 6. O-O {[%clk 0:02:54]}  Nc6 {[%clk 0:02:56]} 7. d5 {[%clk 0:02:50]}  Ne5 {[%clk 0:02:56]} 8. Nxe5 {[%clk 0:02:38]}  dxe5 {[%clk 0:02:57]} 9. Be3 {[%clk 0:02:35]}  h6 {[%clk 0:02:56]} 10. Qd2 {[%clk 0:02:34]}  Kh7 {[%clk 0:02:56]} 11. h3 {[%clk 0:02:27]}  Ne8 {[%clk 0:02:56]} 12. f4 {[%clk 0:02:15]}  exf4 {[%clk 0:02:55]} 13. Bxf4 {[%clk 0:02:15]}  e5 {[%clk 0:02:55]} 14. Be3 {[%clk 0:02:02]}  Nd6 {[%clk 0:02:54]} 15. Bd3 {[%clk 0:01:57]}  a6 {[%clk 0:02:53]} 16. Na4 {[%clk 0:01:48]}  f5 {[%clk 0:02:52]} 17. Nc5 {[%clk 0:01:41]}  f4 {[%clk 0:02:52]} 18. Bf2 {[%clk 0:01:40]}  Qe7 {[%clk 0:02:51]} 19. c4 {[%clk 0:01:30]}  g5 {[%clk 0:02:42]} 20. Nb3 {[%clk 0:01:25]}  h5 {[%clk 0:02:39]} 21. c5 {[%clk 0:01:25]}  Nf7 {[%clk 0:02:39]} 22. Be2 {[%clk 0:01:21]}  g4 {[%clk 0:02:37]} 23. Qd1 {[%clk 0:01:20]}  Nh6 {[%clk 0:02:37]} 24. d6 {[%clk 0:01:19]}  cxd6 {[%clk 0:02:36]} 25. Qxd6 {[%clk 0:01:18]}  Qg5 {[%clk 0:02:33]} 26. h4 {[%clk 0:01:17]}  Qf6 {[%clk 0:02:26]} 27. Qxf6 {[%clk 0:01:16]}  Rxf6 {[%clk 0:02:17]} 28. Rfd1 {[%clk 0:01:11]}  g3 {[%clk 0:02:17]} 29. Be1 {[%clk 0:01:11]}  Bg4 {[%clk 0:02:16]} 30. Bf3 {[%clk 0:01:10]}  Rf7 {[%clk 0:02:12]} 31. Bc3 {[%clk 0:01:05]}  Re8 {[%clk 0:02:09]} 32. Rd5 {[%clk 0:01:02]}  Kg6 {[%clk 0:01:56]} 33. Rad1 {[%clk 0:01:02]}  Be6 {[%clk 0:01:56]} 34. Rd6 {[%clk 0:01:01]}  Ng4 {[%clk 0:01:56]} 35. c6 {[%clk 0:00:51]}  Bf8 {[%clk 0:01:49]} 36. Nc5 {[%clk 0:00:44]}  Bxd6 {[%clk 0:00:53]} 37. Rxd6 {[%clk 0:00:45]}  bxc6 {[%clk 0:00:52]} 38. Rxe6+ {[%clk 0:00:39]}  Rxe6 {[%clk 0:00:52]} 39. Nxe6 {[%clk 0:00:40]}  Re7 {[%clk 0:00:48]} 40. Nc5 {[%clk 0:00:29]}  Kf6 {[%clk 0:00:41]} 41. Nd3 {[%clk 0:00:26]}  Rd7 {[%clk 0:00:40]} 42. Nxf4 {[%clk 0:00:26]}  Nh2 {[%clk 0:00:29]} 43. Nxh5+ {[%clk 0:00:22]}  Ke6 {[%clk 0:00:19]} 44. Be2 {[%clk 0:00:18]}  Rh7 {[%clk 0:00:16]} 45. Be1 {[%clk 0:00:16]}  Rd7 {[%clk 0:00:10]} 46. Nxg3 {[%clk 0:00:14]}  Rd2 {[%clk 0:00:06]} 47. Bxd2 {[%clk 0:00:14]} 1-0


[Site "https://www.chess.com"]

[Event "Titled Tuesday Blitz May 16 Late 2023"]
[White "Hnydiuk, Aleksander"]
[Black "Szente Varga, Fruzsina"]
[WhiteFideId "1109057"]
[BlackFideId "712264"]
[WhiteElo "2374"]
[BlackElo "1994"]
[Result "0-1"]
[Round "05"]
[TimeControl "180+2"]
[Date "2023.05.16"]
[WhiteClock "0:00:00"]
[BlackClock "0:00:11"]

1. d4 {[%clk 0:01:25]}  Nf6 {[%clk 0:02:59]} 2. c4 {[%clk 0:01:23]}  g6 {[%clk 0:03:00]} 3. f3 {[%clk 0:01:22]}  Bg7 {[%clk 0:02:58]} 4. e4 {[%clk 0:01:22]}  d6 {[%clk 0:02:58]} 5. Be3 {[%clk 0:01:22]}  O-O {[%clk 0:02:58]} 6. Ne2 {[%clk 0:01:19]}  c5 {[%clk 0:02:58]} 7. d5 {[%clk 0:01:19]}  e6 {[%clk 0:02:58]} 8. Nec3 {[%clk 0:01:18]}  exd5 {[%clk 0:02:58]} 9. cxd5 {[%clk 0:01:18]}  Re8 {[%clk 0:02:58]} 10. Be2 {[%clk 0:01:17]}  a6 {[%clk 0:02:58]} 11. a4 {[%clk 0:01:16]}  Nbd7 {[%clk 0:02:58]} 12. O-O {[%clk 0:01:14]}  Rb8 {[%clk 0:02:52]} 13. Na3 {[%clk 0:01:14]}  Ne5 {[%clk 0:02:48]} 14. h3 {[%clk 0:01:12]}  Ned7 {[%clk 0:02:42]} 15. Nc4 {[%clk 0:01:11]}  Nf8 {[%clk 0:02:41]} 16. Bf4 {[%clk 0:01:05]}  Nh5 {[%clk 0:02:17]} 17. Bxd6 {[%clk 0:01:02]}  Bd4+ {[%clk 0:02:16]} 18. Kh1 {[%clk 0:00:57]}  Bxh3 {[%clk 0:01:13]} 19. gxh3 {[%clk 0:00:54]}  Qh4 {[%clk 0:01:13]} 20. Kg2 {[%clk 0:00:43]}  Re5 {[%clk 0:00:59]} 21. Qe1 {[%clk 0:00:08]}  Rg5+ {[%clk 0:00:57]} 22. Kh2 {[%clk 0:00:07]}  Ng3 {[%clk 0:00:17]} 23. Bxg3 {[%clk 0:00:03]}  Qh6 {[%clk 0:00:15]} 24. h4 {[%clk 0:00:01]}  Rh5 {[%clk 0:00:13]} 25. Kg2 {[%clk 0:00:00]}  g5 {[%clk 0:00:11]} 0-1


[Site "https://www.chess.com"]

[Event "Titled Tuesday Blitz May 16 Late 2023"]
[White "Deviprasath, Sharvesh"]
[Black "Roman, Rodrigo"]
[WhiteFideId "30938228"]
[BlackFideId "3701220"]
[WhiteElo "2168"]
[BlackElo "1995"]
[Result "1-0"]
[Round "05"]
[TimeControl "180+2"]
[Date "2023.05.16"]
[WhiteClock "0:00:49"]
[BlackClock "0:00:15"]

1. e4 {[%clk 0:03:00]}  c5 {[%clk 0:02:27]} 2. Nf3 {[%clk 0:02:59]}  b6 {[%clk 0:01:59]} 3. d4 {[%clk 0:02:57]}  cxd4 {[%clk 0:01:59]} 4. Nxd4 {[%clk 0:02:58]}  Bb7 {[%clk 0:01:59]} 5. Nc3 {[%clk 0:02:58]}  d6 {[%clk 0:01:57]} 6. Bb5+ {[%clk 0:02:36]}  Nd7 {[%clk 0:01:55]} 7. O-O {[%clk 0:02:30]}  Nf6 {[%clk 0:01:53]} 8. Re1 {[%clk 0:02:30]}  e6 {[%clk 0:01:53]} 9. Nd5 {[%clk 0:02:10]}  a6 {[%clk 0:01:31]} 10. Nxf6+ {[%clk 0:02:09]}  gxf6 {[%clk 0:01:18]} 11. Ba4 {[%clk 0:02:06]}  b5 {[%clk 0:01:19]} 12. Bb3 {[%clk 0:02:05]}  Nc5 {[%clk 0:01:19]} 13. Bd5 {[%clk 0:02:02]}  exd5 {[%clk 0:01:12]} 14. exd5+ {[%clk 0:02:00]}  Kd7 {[%clk 0:01:11]} 15. b4 {[%clk 0:02:00]}  Na4 {[%clk 0:01:11]} 16. c4 {[%clk 0:01:48]}  Nb6 {[%clk 0:01:07]} 17. c5 {[%clk 0:01:36]}  dxc5 {[%clk 0:01:01]} 18. Qg4+ {[%clk 0:01:35]}  Kc7 {[%clk 0:00:58]} 19. Bf4+ {[%clk 0:01:36]}  Bd6 {[%clk 0:00:55]} 20. bxc5 {[%clk 0:01:31]}  Nc4 {[%clk 0:00:53]} 21. cxd6+ {[%clk 0:01:28]}  Kb6 {[%clk 0:00:53]} 22. a4 {[%clk 0:01:19]}  Rg8 {[%clk 0:00:49]} 23. Qf3 {[%clk 0:01:15]}  Qd7 {[%clk 0:00:43]} 24. a5+ {[%clk 0:01:09]}  Nxa5 {[%clk 0:00:34]} 25. Nc6 {[%clk 0:01:09]}  Bxc6 {[%clk 0:00:27]} 26. Re7 {[%clk 0:00:53]}  Nc4 {[%clk 0:00:15]} 27. Be3+ {[%clk 0:00:49]} 1-0


[Site "https://www.chess.com"]

[Event "Titled Tuesday Blitz May 16 Late 2023"]
[White "Figorito, Nick"]
[Black "Mikhalsky, Vladimir"]
[WhiteFideId "30923689"]
[BlackFideId "14144352"]
[WhiteElo "2316"]
[BlackElo "2236"]
[Result "1-0"]
[Round "05"]
[TimeControl "180+2"]
[Date "2023.05.16"]
[WhiteClock "0:00:11"]
[BlackClock "0:00:49"]

1. Nf3 {[%clk 0:03:00]}  c5 {[%clk 0:02:58]} 2. g3 {[%clk 0:03:01]}  Nc6 {[%clk 0:02:57]} 3. d4 {[%clk 0:03:01]}  cxd4 {[%clk 0:02:56]} 4. Nxd4 {[%clk 0:03:02]}  e5 {[%clk 0:02:56]} 5. Nxc6 {[%clk 0:03:02]}  bxc6 {[%clk 0:02:53]} 6. Bg2 {[%clk 0:03:02]}  d5 {[%clk 0:02:53]} 7. c4 {[%clk 0:03:02]}  Be6 {[%clk 0:02:52]} 8. Nc3 {[%clk 0:03:02]}  Ne7 {[%clk 0:02:51]} 9. cxd5 {[%clk 0:03:01]}  cxd5 {[%clk 0:02:50]} 10. O-O {[%clk 0:02:59]}  Qd7 {[%clk 0:02:50]} 11. b3 {[%clk 0:02:35]}  Rd8 {[%clk 0:02:47]} 12. Ba3 {[%clk 0:02:32]}  f6 {[%clk 0:02:45]} 13. Rc1 {[%clk 0:02:25]}  Kf7 {[%clk 0:02:26]} 14. Na4 {[%clk 0:02:21]}  Nf5 {[%clk 0:02:07]} 15. Bxf8 {[%clk 0:02:17]}  Rhxf8 {[%clk 0:02:06]} 16. Nc5 {[%clk 0:02:17]}  Qd6 {[%clk 0:02:04]} 17. Nxe6 {[%clk 0:02:04]}  Qxe6 {[%clk 0:02:04]} 18. Rc7+ {[%clk 0:02:02]}  Ne7 {[%clk 0:01:59]} 19. Rxa7 {[%clk 0:01:54]}  Ra8 {[%clk 0:01:59]} 20. Bxd5 {[%clk 0:01:48]}  Rxa7 {[%clk 0:01:54]} 21. Bxe6+ {[%clk 0:01:47]}  Kxe6 {[%clk 0:01:54]} 22. Qc2 {[%clk 0:01:39]}  Rc8 {[%clk 0:01:50]} 23. Qxh7 {[%clk 0:01:39]}  Rxa2 {[%clk 0:01:46]} 24. Qxg7 {[%clk 0:01:36]}  Rcc2 {[%clk 0:01:41]} 25. Qg4+ {[%clk 0:01:30]}  f5 {[%clk 0:01:38]} 26. Qh4 {[%clk 0:01:15]}  Rxe2 {[%clk 0:01:37]} 27. Qh6+ {[%clk 0:01:16]}  Kf7 {[%clk 0:01:36]} 28. Qh7+ {[%clk 0:01:12]}  Ke6 {[%clk 0:01:36]} 29. b4 {[%clk 0:01:03]}  Rab2 {[%clk 0:01:33]} 30. Qh6+ {[%clk 0:01:02]}  Kf7 {[%clk 0:01:30]} 31. Qb6 {[%clk 0:01:01]}  Nd5 {[%clk 0:01:25]} 32. Qb7+ {[%clk 0:01:00]}  Ne7 {[%clk 0:01:22]} 33. b5 {[%clk 0:00:57]}  e4 {[%clk 0:01:22]} 34. b6 {[%clk 0:00:53]}  Ke6 {[%clk 0:01:21]} 35. Qc7 {[%clk 0:00:40]}  e3 {[%clk 0:01:21]} 36. b7 {[%clk 0:00:34]}  exf2+ {[%clk 0:01:18]} 37. Kg2 {[%clk 0:00:29]}  Nd5 {[%clk 0:01:17]} 38. Qc8+ {[%clk 0:00:27]}  Kf6 {[%clk 0:01:15]} 39. Qd8+ {[%clk 0:00:27]}  Ke6 {[%clk 0:01:13]} 40. Qe8+ {[%clk 0:00:18]}  Kf6 {[%clk 0:01:13]} 41. Qxe2 {[%clk 0:00:16]}  Rxe2 {[%clk 0:01:11]} 42. b8=Q {[%clk 0:00:16]}  Ne3+ {[%clk 0:01:10]} 43. Kf3 {[%clk 0:00:16]}  Nxf1 {[%clk 0:01:05]} 44. Kxe2 {[%clk 0:00:16]}  Nxh2 {[%clk 0:01:05]} 45. Kxf2 {[%clk 0:00:16]}  Ng4+ {[%clk 0:01:05]} 46. Kg1 {[%clk 0:00:16]}  Kg5 {[%clk 0:01:03]} 47. Qf4+ {[%clk 0:00:16]}  Kg6 {[%clk 0:01:03]} 48. Qa4 {[%clk 0:00:16]}  Nf6 {[%clk 0:01:02]} 49. Kg2 {[%clk 0:00:15]}  Kg5 {[%clk 0:01:02]} 50. Kf3 {[%clk 0:00:15]}  Ne4 {[%clk 0:01:00]} 51. Qa8 {[%clk 0:00:12]}  Nd2+ {[%clk 0:00:59]} 52. Ke3 {[%clk 0:00:11]}  Nf1+ {[%clk 0:00:55]} 53. Kf2 {[%clk 0:00:11]}  Nh2 {[%clk 0:00:53]} 54. Qg8+ {[%clk 0:00:11]}  Kh5 {[%clk 0:00:52]} 55. Qh8+ {[%clk 0:00:11]}  Kg4 {[%clk 0:00:52]} 56. Qxh2 {[%clk 0:00:11]}  f4 {[%clk 0:00:49]} 57. Qh4+ {[%clk 0:00:11]} 1-0


[Site "https://www.chess.com"]

[Event "Titled Tuesday Blitz May 16 Late 2023"]
[White "Vega Gutierrez, Sabrina"]
[Black "Rose, Felix"]
[WhiteFideId "2219026"]
[BlackFideId "5105722"]
[WhiteElo "2209"]
[BlackElo "2039"]
[Result "0-1"]
[Round "05"]
[TimeControl "180+2"]
[Date "2023.05.16"]
[WhiteClock "0:00:00"]
[BlackClock "0:00:16"]

1. e4 {[%clk 0:03:00]}  e5 {[%clk 0:02:59]} 2. Nf3 {[%clk 0:03:00]}  Nc6 {[%clk 0:03:00]} 3. Nc3 {[%clk 0:03:00]}  Nf6 {[%clk 0:03:00]} 4. g3 {[%clk 0:03:01]}  d5 {[%clk 0:03:00]} 5. exd5 {[%clk 0:03:02]}  Nxd5 {[%clk 0:03:00]} 6. Bg2 {[%clk 0:03:02]}  Nxc3 {[%clk 0:03:00]} 7. bxc3 {[%clk 0:03:03]}  Bc5 {[%clk 0:03:00]} 8. O-O {[%clk 0:03:04]}  O-O {[%clk 0:03:00]} 9. d3 {[%clk 0:03:04]}  h6 {[%clk 0:02:54]} 10. Rb1 {[%clk 0:03:02]}  Bb6 {[%clk 0:02:54]} 11. Nd2 {[%clk 0:03:02]}  Be6 {[%clk 0:02:45]} 12. Qe1 {[%clk 0:02:57]}  Qd7 {[%clk 0:02:40]} 13. c4 {[%clk 0:02:32]}  Rfe8 {[%clk 0:02:26]} 14. Ba3 {[%clk 0:01:41]}  Nd4 {[%clk 0:02:11]} 15. Qxe5 {[%clk 0:01:21]}  Bxc4 {[%clk 0:01:51]} 16. Qh5 {[%clk 0:01:14]}  Bxa2 {[%clk 0:01:44]} 17. Rb2 {[%clk 0:01:08]}  Be6 {[%clk 0:00:58]} 18. Bxb7 {[%clk 0:00:56]}  Rab8 {[%clk 0:00:55]} 19. Bg2 {[%clk 0:00:56]}  Bg4 {[%clk 0:00:51]} 20. Qd5 {[%clk 0:00:50]}  Qxd5 {[%clk 0:00:49]} 21. Bxd5 {[%clk 0:00:51]}  Re2 {[%clk 0:00:47]} 22. Nc4 {[%clk 0:00:48]}  Rd8 {[%clk 0:00:40]} 23. Bg2 {[%clk 0:00:25]}  Nxc2 {[%clk 0:00:28]} 24. h3 {[%clk 0:00:19]}  Bf5 {[%clk 0:00:22]} 25. Be4 {[%clk 0:00:09]}  Bxe4 {[%clk 0:00:16]} 26. dxe4 {[%clk 0:00:10]}  Rd3 {[%clk 0:00:16]} 27. Nxb6 {[%clk 0:00:04]}  axb6 {[%clk 0:00:17]} 28. Be7 {[%clk 0:00:03]}  Rxe4 {[%clk 0:00:16]} 29. Rc1 {[%clk 0:00:02]}  Rxe7 {[%clk 0:00:16]} 30. Rbxc2 {[%clk 0:00:03]}  Rdd7 {[%clk 0:00:15]} 31. Rc6 {[%clk 0:00:03]}  f6 {[%clk 0:00:15]} 32. h4 {[%clk 0:00:03]}  Kf7 {[%clk 0:00:15]} 33. Kg2 {[%clk 0:00:03]}  Ke8 {[%clk 0:00:16]} 34. h5 {[%clk 0:00:03]}  Kd8 {[%clk 0:00:16]} 35. R1c4 {[%clk 0:00:03]}  Re5 {[%clk 0:00:16]} 36. g4 {[%clk 0:00:03]}  b5 {[%clk 0:00:16]} 37. Rc2 {[%clk 0:00:02]}  b4 {[%clk 0:00:16]} 38. Ra2 {[%clk 0:00:00]}  Rb5 {[%clk 0:00:16]} 0-1


[Site "https://www.chess.com"]